fUST/lending_fUST_20250921
["ID","MTS","AMOUNT","RATE_DAILY","PERIOD"]
[386631757,1758445783793,648.29700133,0.00019075,2]
[386631758,1758445792621,198.04449958,0.00018976,2]
[386631759,1758445802302,300.0,0.00019075,2]
[386631760,1758445807665,1155.44041102,0.00019075,2]
[386631761,1758445807688,44.55958898,0.00019075,2]
[386631793,1758445832354,-1156.2,0.00019076,2]
[386631805,1758445832460,-39023.66612749,0.00019076,2]
[386631807,1758445832475,-1531.44999057,0.00019076,2]
[386632039,1758445835021,-9955.45041102,0.00019076,2]
[386632128,1758445836120,726.43524,0.0002921,60]
[386632142,1758445838143,-16165.21193378,0.00019076,2]
[386632146,1758445838195,-1301.12289125,0.00019076,2]
[386632148,1758445838206,-4456.00643768,0.00019076,2]
[386632150,1758445838217,-963.85330514,0.00019076,2]
[386632153,1758445838228,-1003.90200101,0.00019076,2]
[386632225,1758445841110,-28684.35343303,0.00019076,2]
[386632268,1758445843295,-16208.35816171,0.00019076,2]
[386632271,1758445843304,-1360.7412961,0.00019076,2]
[386632273,1758445843314,-198.04449954,0.00019082,2]
[386632275,1758445843323,-314.53237467,0.000191,2]
[386632278,1758445843332,-500.0,0.000191,2]
[386632281,1758445843341,-3203.0,0.0001917,2]
[386632284,1758445843350,-11866.61419058,0.00019175,2]
[386632287,1758445843359,-480.0,0.00019178,2]
[386632290,1758445843369,-480.0,0.00019178,2]
[386632293,1758445843378,-480.0,0.00019178,2]
[386632296,1758445843387,-480.0,0.00019178,2]
[386632299,1758445843396,-480.0,0.00019178,2]
[386632302,1758445843405,-480.0,0.00019178,2]
[386632304,1758445843414,-480.0,0.00019178,2]
[386632306,1758445843423,-333.99339596,0.00019178,2]
[386632308,1758445843433,-480.0,0.00019178,2]
[386632310,1758445843442,-235.23989102,0.00019178,2]
[386632312,1758445843452,-480.0,0.00019178,2]
[386632314,1758445843461,-480.0,0.00019178,2]
[386632316,1758445843471,-372.72879745,0.00019178,2]
[386632318,1758445843480,-480.0,0.00019178,2]
[386632320,1758445843489,-480.0,0.00019178,2]
[386632322,1758445843498,-480.0,0.00019178,2]
[386632324,1758445843507,-480.0,0.00019178,2]
[386632326,1758445843516,-480.0,0.00019178,2]
[386632328,1758445843525,-480.0,0.00019178,2]
[386632330,1758445843535,-480.0,0.00019178,2]
[386632332,1758445843544,-487.47060437,0.00019178,2]
[386632334,1758445843554,-480.0,0.00019178,2]
[386632336,1758445843563,-488.09048914,0.00019178,2]
[386632338,1758445843573,-480.0,0.00019178,2]
[386632340,1758445843582,-480.0,0.00019178,2]
[386632342,1758445843591,-517.15048836,0.00019178,2]
[386632344,1758445843601,-485.63659577,0.00019178,2]
[386632346,1758445843610,-480.0,0.00019178,2]
[386632348,1758445843619,-480.0,0.00019178,2]
[386632350,1758445843629,-480.0,0.00019178,2]
[386632352,1758445843638,-480.0,0.00019178,2]
[386632354,1758445843647,-480.0,0.00019178,2]
[386632356,1758445843657,-483.22,0.00019178,2]
[386632358,1758445843666,-480.0,0.00019178,2]
[386632360,1758445843675,-480.0,0.00019178,2]
[386632362,1758445843685,-481.0069371,0.00019178,2]
[386632365,1758445843694,-480.0,0.00019178,2]
[386632367,1758445843703,-480.0,0.00019178,2]
[386632369,1758445843713,-480.0,0.00019178,2]
[386632371,1758445843722,-480.0,0.00019178,2]
[386632373,1758445843731,-480.0,0.00019178,2]
[386632375,1758445843740,-480.0,0.00019178,2]
[386632377,1758445843751,-480.0,0.00019178,2]
[386632379,1758445843761,-480.0,0.00019178,2]
[386632381,1758445843770,-480.0,0.00019178,2]
[386632383,1758445843779,-480.0,0.00019178,2]
[386632385,1758445843789,-480.0,0.00019178,2]
[386632387,1758445843798,-480.0,0.00019178,2]
[386632389,1758445843807,-485.64113204,0.00019178,2]
[386632391,1758445843816,-482.63987726,0.00019178,2]
[386632393,1758445843826,-482.08890952,0.00019178,2]
[386632395,1758445843835,-480.0,0.00019178,2]
[386632397,1758445843844,-480.0,0.00019178,2]
[386632399,1758445843853,-480.0,0.00019178,2]
[386632401,1758445843862,-480.0,0.00019178,2]
[386632403,1758445843871,-311.37,0.00019178,2]
[386632405,1758445843881,-480.0,0.00019178,2]
[386632406,1758445843890,-480.0,0.00019178,2]
[386632408,1758445843899,-480.0,0.00019178,2]
[386632410,1758445843908,-480.0,0.00019178,2]
[386632412,1758445843917,-480.0,0.00019178,2]
[386632414,1758445843926,-480.0,0.00019178,2]
[386632416,1758445843935,-480.0,0.00019178,2]
[386632418,1758445843943,-480.0,0.00019178,2]
[386632420,1758445843953,-597.98,0.00019178,2]
[386632422,1758445843962,-480.0,0.00019178,2]
[386632424,1758445843971,-480.0,0.00019178,2]
[386632426,1758445843980,-480.0,0.00019178,2]
[386632428,1758445843989,-1033.0,0.00019178,2]
[386632431,1758445844000,-480.0,0.00019178,2]
[386632432,1758445844010,-480.0,0.00019178,2]
[386632435,1758445844019,-480.0,0.00019178,2]
[386632437,1758445844028,-480.0,0.00019178,2]
[386632439,1758445844038,-480.0,0.00019178,2]
[386632441,1758445844048,-480.0,0.00019178,2]
[386632443,1758445844057,-480.0,0.00019178,2]
[386632445,1758445844068,-480.0,0.00019178,2]
[386632446,1758445844079,-599.03934149,0.00019178,2]
[386632448,1758445844088,-480.0,0.00019178,2]
[386632450,1758445844097,-444.36421403,0.00019178,2]
[386632453,1758445844107,-574.5,0.00019178,2]
[386632455,1758445844117,-480.0,0.00019178,2]
[386632457,1758445844126,-598.09684194,0.00019178,2]
[386632459,1758445844136,-480.0,0.00019178,2]
[386632461,1758445844145,-480.0,0.00019178,2]
[386632463,1758445844154,-480.0,0.00019178,2]
[386632465,1758445844164,-480.0,0.00019178,2]
[386632467,1758445844174,-327.4107813,0.00019178,2]
[386632469,1758445844183,-839.34,0.00019178,2]
[386632471,1758445844193,-733.93,0.00019178,2]
[386632472,1758445844202,-480.0,0.00019178,2]
[386632475,1758445844211,-480.0,0.00019178,2]
[386632477,1758445844220,-480.0,0.00019178,2]
[386632478,1758445844230,-480.0,0.00019178,2]
[386632480,1758445844239,-480.0,0.00019178,2]
[386632482,1758445844249,-480.0,0.00019178,2]
[386632484,1758445844258,-480.0,0.00019178,2]
[386632487,1758445844269,-480.0,0.00019178,2]
[386632488,1758445844278,-480.0,0.00019178,2]
[386632490,1758445844287,-480.0,0.00019178,2]
[386632492,1758445844296,-480.0,0.00019178,2]
[386632494,1758445844305,-480.0,0.00019178,2]
[386632496,1758445844315,-480.0,0.00019178,2]
[386632498,1758445844324,-481.4507663,0.00019178,2]
[386632500,1758445844333,-480.0,0.00019178,2]
[386632502,1758445844342,-480.0,0.00019178,2]
[386632504,1758445844351,-480.0,0.00019178,2]
[386632506,1758445844361,-480.0,0.00019178,2]
[386632508,1758445844370,-650.91,0.00019178,2]
[386632510,1758445844379,-480.0,0.00019178,2]
[386632512,1758445844389,-480.0,0.00019178,2]
[386632514,1758445844398,-480.0,0.00019178,2]
[386632517,1758445844408,-480.0,0.00019178,2]
[386632519,1758445844417,-480.0,0.00019178,2]
[386632521,1758445844427,-480.0,0.00019178,2]
[386632523,1758445844437,-480.0,0.00019178,2]
[386632525,1758445844446,-480.0,0.00019178,2]
[386632527,1758445844455,-480.0,0.00019178,2]
[386632529,1758445844463,-481.72114828,0.00019178,2]
[386632531,1758445844473,-480.0,0.00019178,2]
[386632533,1758445844482,-480.0,0.00019178,2]
[386632535,1758445844491,-554.95494692,0.00019178,2]
[386632536,1758445844501,-480.0,0.00019178,2]
[386632539,1758445844510,-480.0,0.00019178,2]
[386632540,1758445844519,-1514.26,0.00019178,2]
[386632542,1758445844528,-480.0,0.00019178,2]
[386632544,1758445844537,-489.3784428,0.00019178,2]
[386632546,1758445844547,-480.0,0.00019178,2]
[386632548,1758445844556,-543.97,0.00019178,2]
[386632551,1758445844566,-484.6349188,0.00019178,2]
[386632553,1758445844575,-480.0,0.00019178,2]
[386632554,1758445844584,-480.0,0.00019178,2]
[386632556,1758445844593,-480.0,0.00019178,2]
[386632558,1758445844602,-1571.5,0.00019178,2]
[386632560,1758445844611,-435.3232003,0.00019178,2]
[386632562,1758445844621,-480.0,0.00019178,2]
[386632564,1758445844630,-480.0,0.00019178,2]
[386632566,1758445844640,-772.22,0.00019178,2]
[386632568,1758445844649,-480.0,0.00019178,2]
[386632570,1758445844659,-501.60248268,0.00019178,2]
[386632572,1758445844668,-480.0,0.00019178,2]
[386632574,1758445844677,-240.48412745,0.00019178,2]
[386632577,1758445844686,-480.0,0.00019178,2]
[386632579,1758445844695,-480.0,0.00019178,2]
[386632580,1758445844705,-480.0,0.00019178,2]
[386632582,1758445844714,-480.0,0.00019178,2]
[386632584,1758445844723,-480.0,0.00019178,2]
[386632586,1758445844732,-480.0,0.00019178,2]
[386632588,1758445844741,-480.0,0.00019178,2]
[386632590,1758445844751,-483.58245117,0.00019178,2]
[386632592,1758445844760,-480.0,0.00019178,2]
[386632594,1758445844769,-481.93340819,0.00019178,2]
[386632596,1758445844778,-480.0,0.00019178,2]
[386632599,1758445844788,-480.0,0.00019178,2]
[386632601,1758445844797,-484.19065132,0.00019178,2]
[386632603,1758445844806,-482.36171412,0.00019178,2]
[386632604,1758445844815,-480.0,0.00019178,2]
[386632606,1758445844825,-480.0,0.00019178,2]
[386632608,1758445844834,-480.0,0.00019178,2]
[386632610,1758445844843,-490.21519446,0.00019178,2]
[386632612,1758445844853,-480.0,0.00019178,2]
[386632614,1758445844862,-484.00809483,0.00019178,2]
[386632616,1758445844871,-480.0,0.00019178,2]
[386632618,1758445844880,-480.0,0.00019178,2]
[386632620,1758445844889,-480.0,0.00019178,2]
[386632622,1758445844898,-484.6693546,0.00019178,2]
[386632624,1758445844908,-484.331738,0.00019178,2]
[386632626,1758445844918,-499.08439493,0.00019178,2]
[386632629,1758445844928,-480.0,0.00019178,2]
[386632630,1758445844937,-1027.75,0.00019178,2]
[386632632,1758445844946,-392.96808086,0.00019178,2]
[386632634,1758445844956,-480.0,0.00019178,2]
[386632636,1758445844965,-500.0,0.00019178,2]
[386632638,1758445844974,-25360.2635499,0.00019178,2]
[386632640,1758445844983,-198.04449954,0.00019188,2]
[386632642,1758445844992,-500.0,0.00019223,2]
[386632644,1758445845001,-168.0,0.0001926,2]
[386632646,1758445845010,-480.0,0.00019275,2]
[386632648,1758445845019,-480.0,0.00019275,2]
[386632650,1758445845029,-480.0,0.00019275,2]
[386632652,1758445845038,-484.70633712,0.00019275,2]
[386632654,1758445845048,-480.0,0.00019275,2]
[386632656,1758445845057,-480.0,0.00019275,2]
[386632658,1758445845067,-480.0,0.00019275,2]
[386632660,1758445845079,-151.61503754,0.00019275,2]
[386632662,1758445845088,-500.0,0.00019275,2]
[386632664,1758445845097,-500.0,0.00019275,2]
[386632666,1758445845106,-537.08091969,0.00019275,2]
[386632668,1758445845115,-480.0,0.00019275,2]
[386632670,1758445845124,-480.0,0.00019275,2]
[386632672,1758445845134,-406.62700102,0.00019275,2]
[386632673,1758445845143,-480.0,0.00019275,2]
[386632674,1758445845152,-480.0,0.00019275,2]
[386632675,1758445845161,-493.04694364,0.00019275,2]
[386632676,1758445845170,-482.84270222,0.00019275,2]
[386632677,1758445845180,-480.0,0.00019275,2]
[386632678,1758445845189,-369.361706,0.00019275,2]
[386632679,1758445845198,-480.0,0.00019275,2]
[386632680,1758445845207,-480.0,0.00019275,2]
[386632681,1758445845217,-480.0,0.00019275,2]
[386632682,1758445845226,-480.0,0.00019275,2]
[386632683,1758445845236,-480.0,0.00019275,2]
[386632684,1758445845245,-480.0,0.00019275,2]
[386632685,1758445845254,-482.70550239,0.00019275,2]
[386632686,1758445845263,-482.57382396,0.00019275,2]
[386632687,1758445845358,-480.0,0.00019275,7]
[386632688,1758445845368,-489.76900798,0.00019275,2]
[386632689,1758445845377,-480.0,0.00019275,2]
[386632690,1758445845387,-481.45924109,0.00019275,2]
[386632691,1758445845396,-480.0,0.00019275,2]
[386632692,1758445845409,-480.0,0.00019275,2]
[386632694,1758445845418,-480.0,0.00019275,2]
[386632695,1758445845427,-480.0,0.00019275,2]
[386632696,1758445845435,-480.0,0.00019275,2]
[386632697,1758445845443,-480.0,0.00019275,2]
[386632699,1758445845452,-480.0,0.00019275,2]
[386632701,1758445845461,-480.0,0.00019275,2]
[386632703,1758445845470,-480.0,0.00019275,2]
[386632705,1758445845479,-480.0,0.00019275,2]
[386632707,1758445845488,-606.20742987,0.00019275,2]
[386632709,1758445845497,-480.0,0.00019275,2]
[386632711,1758445845506,-480.0,0.00019275,2]
[386632713,1758445845515,-480.0,0.00019275,2]
[386632715,1758445845524,-480.0,0.00019275,2]
[386632717,1758445845533,-480.0,0.00019275,2]
[386632719,1758445845544,-480.0,0.00019275,2]
[386632721,1758445845553,-480.0,0.00019275,2]
[386632723,1758445845562,-480.0,0.00019275,2]
[386632725,1758445845571,-480.0,0.00019275,2]
[386632727,1758445845582,-480.0,0.00019275,2]
[386632729,1758445845591,-480.0,0.00019275,2]
[386632731,1758445845600,-563.1747186,0.00019275,2]
[386632733,1758445845610,-480.0,0.00019275,2]
[386632735,1758445845619,-570.52829747,0.00019275,2]
[386632737,1758445845628,-482.11650088,0.00019275,2]
[386632739,1758445845638,-480.0,0.00019275,2]
[386632741,1758445845646,-480.80905013,0.00019275,2]
[386632743,1758445845655,-480.0,0.00019275,2]
[386632745,1758445845664,-480.0,0.00019275,2]
[386632747,1758445845674,-480.0,0.00019275,2]
[386632749,1758445845683,-480.0,0.00019275,2]
[386632751,1758445845693,-481.73738525,0.00019275,2]
[386632753,1758445845702,-480.0,0.00019275,2]
[386632755,1758445845711,-480.0,0.00019275,2]
[386632758,1758445845720,-480.0,0.00019275,2]
[386632760,1758445845729,-480.0,0.00019275,2]
[386632762,1758445845739,-480.0,0.00019275,2]
[386632764,1758445845749,-480.0,0.00019275,2]
[386632766,1758445845758,-480.0,0.00019275,2]
[386632768,1758445845767,-480.0,0.00019275,2]
[386632770,1758445845777,-480.0,0.00019275,2]
[386632772,1758445845786,-480.0,0.00019275,2]
[386632774,1758445845795,-480.0,0.00019275,2]
[386632776,1758445845804,-480.0,0.00019275,2]
[386632778,1758445845813,-480.0,0.00019275,2]
[386632780,1758445845823,-480.0,0.00019275,2]
[386632782,1758445845833,-480.0,0.00019275,2]
[386632784,1758445845843,-480.0,0.00019275,2]
[386632786,1758445845852,-480.0,0.00019275,2]
[386632788,1758445845861,-480.0,0.00019275,2]
[386632790,1758445845871,-480.0,0.00019275,2]
[386632792,1758445845880,-480.0,0.00019275,2]
[386632794,1758445845890,-483.73456798,0.00019275,2]
[386632796,1758445845899,-485.82770561,0.00019275,2]
[386632798,1758445845909,-480.0,0.00019275,2]
[386632800,1758445845918,-480.0,0.00019275,2]
[386632802,1758445845927,-480.52859937,0.00019275,2]
[386632804,1758445845936,-151.0,0.00019275,2]
[386632806,1758445845945,-480.0,0.00019275,2]
[386632808,1758445845955,-480.0,0.00019275,2]
[386632810,1758445845965,-480.0,0.00019275,2]
[386632812,1758445845974,-151.0,0.00019275,2]
[386632815,1758445845984,-151.0,0.00019275,2]
[386632817,1758445845993,-480.0,0.00019275,2]
[386632819,1758445846003,-480.0,0.00019275,2]
[386632821,1758445846013,-151.0,0.00019275,2]
[386632823,1758445846022,-151.0,0.00019275,2]
[386632825,1758445846032,-480.0,0.00019275,2]
[386632827,1758445846041,-480.0,0.00019275,2]
[386632828,1758445846050,-480.0,0.00019275,2]
[386632830,1758445846059,-480.0,0.00019275,2]
[386632832,1758445846070,-480.0,0.00019275,2]
[386632834,1758445846079,-480.0,0.00019275,2]
[386632836,1758445846089,-480.0,0.00019275,2]
[386632838,1758445846099,-480.0,0.00019275,2]
[386632840,1758445846107,-480.0,0.00019275,2]
[386632842,1758445846116,-491.55800359,0.00019275,2]
[386632844,1758445846125,-480.0,0.00019275,2]
[386632846,1758445846135,-480.0,0.00019275,2]
[386632848,1758445846147,-480.0,0.00019275,2]
[386632850,1758445846156,-480.0,0.00019275,2]
[386632852,1758445846166,-480.0,0.00019275,2]
[386632854,1758445846175,-480.0,0.00019275,2]
[386632857,1758445846186,-480.0,0.00019275,2]
[386632859,1758445846195,-480.0,0.00019275,2]
[386632861,1758445846205,-151.0,0.00019275,2]
[386632863,1758445846214,-480.0,0.00019275,2]
[386632865,1758445846223,-480.0,0.00019275,2]
[386632867,1758445846232,-151.0,0.00019275,2]
[386632871,1758445846245,-151.0,0.00019275,2]
[386632874,1758445846255,-152.184519,0.00019275,2]
[386632877,1758445846265,-153.668486,0.00019275,2]
[386632880,1758445846274,-480.0,0.00019275,2]
[386632883,1758445846283,-480.0,0.00019275,2]
[386632886,1758445846294,-480.0,0.00019275,2]
[386632889,1758445846303,-151.0,0.00019275,2]
[386632892,1758445846312,-151.0,0.00019275,2]
[386632895,1758445846321,-480.0,0.00019275,2]
[386632898,1758445846330,-480.0,0.00019275,2]
[386632901,1758445846339,-480.0,0.00019275,2]
[386632902,1758445846348,-480.0,0.00019275,2]
[386632904,1758445846358,-151.0,0.00019275,2]
[386632905,1758445846367,-483.56600062,0.00019275,2]
[386632906,1758445846377,-483.41200914,0.00019275,2]
[386632907,1758445846386,-480.0,0.00019275,2]
[386632908,1758445846397,-3606.97,0.00019275,2]
[386632910,1758445846406,-151.0,0.00019275,2]
[386632912,1758445846415,-151.0,0.00019275,2]
[386632914,1758445846424,-151.0,0.00019275,2]
[386632916,1758445846434,-151.0,0.00019275,2]
[386632918,1758445846442,-151.861881,0.00019275,2]
[386632920,1758445846451,-197.749859,0.00019275,2]
[386632922,1758445846460,-151.0,0.00019275,2]
[386632924,1758445846469,-151.0,0.00019275,2]
[386632926,1758445846478,-500.0,0.00019275,2]
[386632928,1758445846487,-151.0,0.00019275,2]
[386632930,1758445846496,-167.466942,0.00019275,2]
[386632932,1758445846505,-151.0,0.00019275,2]
[386632934,1758445846514,-152.175508,0.00019275,2]
[386632936,1758445846524,-480.0,0.00019275,2]
[386632938,1758445846533,-480.0,0.00019275,2]
[386632940,1758445846541,-480.0,0.00019275,2]
[386632942,1758445846551,-481.86194501,0.00019275,2]
[386632944,1758445846560,-480.0,0.00019275,2]
[386632946,1758445846569,-153.9824271,0.00019275,2]
[386632948,1758445846578,-480.0,0.00019275,2]
[386632950,1758445846587,-151.0,0.00019275,2]
[386632952,1758445846596,-151.0,0.00019275,2]
[386632954,1758445846605,-500.0,0.00019275,2]
[386632956,1758445846615,-480.0,0.00019275,2]
[386632958,1758445846623,-151.0,0.00019275,2]
[386632960,1758445846632,-153.241372,0.00019275,2]
[386632962,1758445846642,-151.0,0.00019275,2]
[386632964,1758445846652,-151.0,0.00019275,2]
[386632966,1758445846661,-151.0,0.00019275,2]
[386632968,1758445846670,-160.269106,0.00019275,2]
[386632970,1758445846679,-151.0,0.00019275,2]
[386632972,1758445846688,-151.0,0.00019275,2]
[386632973,1758445846698,-151.0,0.00019275,2]
[386632975,1758445846707,-155.666924,0.00019275,2]
[386632978,1758445846717,-151.0,0.00019275,2]
[386632980,1758445846726,-154.010221,0.00019275,2]
[386632982,1758445846735,-480.0,0.00019275,2]
[386632984,1758445846744,-339.17226747,0.00019275,2]
[386632986,1758445846753,-314.53031707,0.00019275,2]
[386632988,1758445846763,-480.0,0.00019275,2]
[386632990,1758445846772,-111.51282731,0.00019275,2]
[386633151,1758445848324,480.0,0.00019178,2]
[386633190,1758445848688,480.0,0.00019178,2]
[386633374,1758445850810,480.0,0.00019178,2]
[386633440,1758445851457,480.0,0.00019178,2]
[386633540,1758445852508,506.03,0.00019178,2]
[386633547,1758445852556,480.0,0.00019178,2]
[386633591,1758445852965,480.0,0.00019178,2]
[386633624,1758445853270,506.03,0.00019178,2]
[386633680,1758445853779,-368.48717269,0.00019275,2]
[386633684,1758445853808,-480.0,0.00019275,2]
[386633688,1758445853835,-480.0,0.00019275,2]
[386633692,1758445853864,-151.0,0.00019275,2]
[386633696,1758445853893,-259.858841,0.00019275,2]
[386633700,1758445853921,-480.0,0.00019275,2]
[386633704,1758445853949,-482.58581578,0.00019275,2]
[386633708,1758445853978,-480.0,0.00019275,2]
[386633713,1758445854019,-480.0,0.00019275,2]
[386633718,1758445854050,-549.19912021,0.00019275,2]
[386633722,1758445854081,-480.0,0.00019275,2]
[386633726,1758445854112,-151.0,0.00019275,2]
[386633731,1758445854143,-151.0,0.00019275,2]
[386633746,1758445854276,-285.83212705,0.00019275,2]
[386633750,1758445854305,-151.0,0.00019275,2]
[386633754,1758445854336,-151.0,0.00019275,2]
[386633758,1758445854364,-480.0,0.00019275,2]
[386633762,1758445854393,-480.0,0.00019275,2]
[386633766,1758445854422,-480.0,0.00019275,2]
[386633770,1758445854452,-500.0,0.00019275,2]
[386633774,1758445854482,-151.0,0.00019275,2]
[386633778,1758445854513,-151.0,0.00019275,2]
[386633782,1758445854541,-480.0,0.00019275,2]
[386633786,1758445854572,-480.0,0.00019275,2]
[386633790,1758445854602,-482.95595606,0.00019275,2]
[386633794,1758445854631,-480.0,0.00019275,2]
[386633798,1758445854660,-152.10931,0.00019275,2]
[386633807,1758445854745,506.03,0.00019178,2]
[386633867,1758445855327,506.03,0.00019178,2]
[386633874,1758445855540,506.03,0.00019178,2]
[386633875,1758445873952,-480.0,0.00019178,2]
[386633876,1758445873983,-550.56,0.00019178,2]
[386633877,1758445874013,-574.71225045,0.00019178,2]
[386633878,1758445874042,-480.0,0.00019178,2]
[386633879,1758445874071,-480.0,0.00019178,2]
[386633880,1758445874104,-1506.02,0.00019178,2]
[386633881,1758445874136,-480.0,0.00019178,2]
[386633882,1758445874165,-417.4254991,0.00019275,2]
[386633883,1758445874496,-4951.90199954,0.00018976,2]
[386633885,1758445922901,300.0,0.00018975,2]
[386633886,1758445923411,623.0,0.00018966,3]
[386633887,1758445934076,311.5,0.00018966,3]
[386633888,1758445934153,-17.20614775,0.00018976,2]
[386633889,1758445934200,-8731.0977045,0.00018976,2]
[386633890,1758445934426,-1234.5,0.00018976,2]
[386633891,1758445934459,-7531.01,0.00018976,2]
[386633892,1758445934560,-10000.01,0.00018976,2]
[386633893,1758445934710,-10000.01,0.00018976,2]
[386633894,1758445934816,-10000.01,0.00018976,2]
[386633895,1758445934936,-10000.01,0.00018976,2]
[386633896,1758445935048,-10000.01,0.00018976,2]
[386633897,1758445935234,-10000.01,0.00018976,2]
[386633898,1758445935384,-10000.01,0.00018976,2]
[386633899,1758445935764,-10000.01,0.00018976,2]
[386633900,1758445951868,1200.0,0.00018975,2]
[386633901,1758445953712,208.68120885,0.00018975,2]
[386633902,1758445953744,250.50618683,0.00018975,2]
[386633903,1758445954169,-8340.82260432,0.00018976,2]
[386633904,1758445954405,-10000.01,0.00018976,2]
[386633905,1758445954522,-10000.01,0.00018976,2]
[386633906,1758445954651,-10000.01,0.00018976,2]
[386633907,1758445954874,-10000.01,0.00018976,2]
[386633908,1758445954916,355.74545331,0.00018975,2]
[386633909,1758445954948,574.37731369,0.00018975,2]
[386633910,1758445955071,-9069.887233,0.00018976,2]
[386633911,1758445955168,-10000.01,0.00018976,2]
[386633912,1758445955284,-10000.01,0.00018976,2]
[386633913,1758445955464,-10000.01,0.00018976,2]
[386633914,1758445955504,-10000.01,0.00018976,2]
[386633915,1758445964184,-3593.1160735,0.00018976,2]
[386633916,1758445964225,-1149.09571111,0.0001899,2]
[386633917,1758445964281,-515.58643078,0.0001899,2]
[386633918,1758445964392,-4479.4944013,0.00019011,2]
[386633919,1758445964421,-1041.0211974,0.00019011,2]
[386633920,1758445964499,-480.0,0.00019178,2]
[386633921,1758445964534,-480.0,0.00019178,2]
[386633922,1758445964571,-480.0,0.00019178,2]
[386633923,1758445964608,-480.0,0.00019178,2]
[386633924,1758445964646,-804.36,0.00019178,2]
[386633925,1758445964683,-480.0,0.00019178,2]
[386633926,1758445964724,-480.0,0.00019178,2]
[386633927,1758445964761,-480.0,0.00019178,2]
[386633928,1758445964797,-480.0,0.00019178,2]
[386633929,1758445964833,-231.29,0.00019178,2]
[386633930,1758445964977,-248.71,0.00019178,2]
[386633931,1758445965009,-480.0,0.00019178,2]
[386633932,1758445965184,-480.0,0.00019178,2]
[386633933,1758445965222,-480.0,0.00019178,2]
[386633934,1758445965253,-480.0,0.00019178,2]
[386633935,1758445965283,-480.0,0.00019178,2]
[386633936,1758445965313,-480.0,0.00019178,2]
[386633937,1758445965341,-480.0,0.00019178,2]
[386633938,1758445965369,-480.0,0.00019178,2]
[386633939,1758445965399,-480.0,0.00019178,2]
[386633940,1758445965429,-382.59,0.00019178,2]
[386633941,1758445965554,-97.41,0.00019178,2]
[386633942,1758445965582,-480.0,0.00019178,2]
[386633943,1758445965612,-480.0,0.00019178,2]
[386633944,1758445965639,-480.0,0.00019178,2]
[386633945,1758445965667,-480.0,0.00019178,2]
[386633946,1758445965696,-324.27783638,0.00019178,2]
[386633947,1758445965725,-480.0,0.00019178,2]
[386633948,1758445965753,-480.0,0.00019178,2]
[386633949,1758445965781,-579.6436864,0.00019178,2]
[386633950,1758445965810,-593.89,0.00019178,2]
[386633951,1758445965839,-346.21695444,0.00019178,2]
[386633952,1758445965888,-357.13304556,0.00019178,2]
[386633953,1758445965917,-480.0,0.00019178,2]
[386633954,1758445965947,-480.0,0.00019178,2]
[386633955,1758445965976,-155.75,0.00019265,3]
[386633956,1758445966004,-467.25,0.00019265,3]
[386633957,1758445966033,-62.5745009,0.00019275,2]